[Event "*** Titled Tuesday Blitz"]
[Site "Chess.com"]
[Date "2021.02.09"]
[Round "10"]
[White "MuhittinBuker"]
[Black "CraiggoryC"]
[Result "1-0"]
[WhiteElo "2064"]
[BlackElo "2156"]
[TimeControl "180+1"]
[EndTime "11:53:35 PST"]
[Termination "MuhittinBuker won by resignation"]

1. d4 {[%clk 0:03:00.9]} 1... Nf6 {[%clk 0:02:59.9]} 2. c4 {[%clk 0:03:00.6]}
2... g6 {[%clk 0:03:00.5]} 3. Nc3 {[%clk 0:03:00.3]} 3... Bg7 {[%clk 0:03:01.2]}
4. e4 {[%clk 0:03:00.3]} 4... O-O {[%clk 0:03:01.8]} 5. Nf3 {[%clk 0:03:00.5]}
5... c5 {[%clk 0:03:02.4]} 6. d5 {[%clk 0:03:00.3]} 6... d6 {[%clk 0:03:03.1]}
7. Be2 {[%clk 0:03:00.5]} 7... e6 {[%clk 0:03:03.7]} 8. O-O {[%clk 0:03:00.8]}
8... exd5 {[%clk 0:03:04.1]} 9. cxd5 {[%clk 0:03:01]} 9... a6 {[%clk 0:03:02.3]}
10. a4 {[%clk 0:03:00.3]} 10... Nbd7 {[%clk 0:03:02.7]} 11. Ne1 {[%clk
0:03:00.2]} 11... Rb8 {[%clk 0:02:56.1]} 12. Bf4 {[%clk 0:02:56.9]} 12... Ne8
{[%clk 0:02:45.3]} 13. h3 {[%clk 0:02:55.1]} 13... Ne5 {[%clk 0:02:45]} 14. Nd3
{[%clk 0:02:53.3]} 14... Qe7 {[%clk 0:02:16.6]} 15. Nxe5 {[%clk 0:02:51.7]}
15... Bxe5 {[%clk 0:02:16.2]} 16. Be3 {[%clk 0:02:49.2]} 16... Bd7 {[%clk
0:02:05]} 17. f3 {[%clk 0:02:38.9]} 17... b5 {[%clk 0:02:03.6]} 18. axb5 {[%clk
0:02:38.7]} 18... axb5 {[%clk 0:02:04.5]} 19. Ra7 {[%clk 0:02:38.4]} 19... Qd8
{[%clk 0:01:35.7]} 20. Qd2 {[%clk 0:02:27]} 20... b4 {[%clk 0:01:35]} 21. Nd1
{[%clk 0:02:21.3]} 21... Nc7 {[%clk 0:01:32]} 22. Bh6 {[%clk 0:02:19.4]} 22...
Re8 {[%clk 0:01:31.2]} 23. Ne3 {[%clk 0:02:19]} 23... Nb5 {[%clk 0:01:28.1]} 24.
Ra6 {[%clk 0:02:16.5]} 24... Nd4 {[%clk 0:01:23.8]} 25. Nc4 {[%clk 0:02:16.5]}
25... Bb5 {[%clk 0:01:23.4]} 26. Ra7 {[%clk 0:02:02.5]} 26... Nxe2+ {[%clk
0:01:10.1]} 27. Qxe2 {[%clk 0:02:01.7]} 27... Bd4+ {[%clk 0:00:58]} 28. Kh1
{[%clk 0:02:00.3]} 28... Qh4 {[%clk 0:00:46.5]} 29. Bc1 {[%clk 0:01:45.7]} 29...
f5 {[%clk 0:00:38.5]} 30. b3 {[%clk 0:01:44.2]} 30... fxe4 {[%clk 0:00:30.7]}
31. fxe4 {[%clk 0:01:44.3]} 31... Rxe4 {[%clk 0:00:30.4]} 32. Qf3 {[%clk
0:01:31.3]} 32... Bxc4 {[%clk 0:00:22.7]} 33. Qf7+ {[%clk 0:01:30.3]} 33... Kh8
{[%clk 0:00:22.7]} 34. Qf8+ {[%clk 0:01:30.6]} 1-0

[Event "*** Titled Tuesday Blitz"]
[Site "Chess.com"]
[Date "2021.02.09"]
[Round "10"]
[White "theultimatehunter"]
[Black "Problematique_99"]
[Result "0-1"]
[WhiteElo "2260"]
[BlackElo "2457"]
[TimeControl "180+1"]
[EndTime "11:53:37 PST"]
[Termination "Problematique_99 won by resignation"]

1. d4 {[%clk 0:03:00.9]} 1... Nf6 {[%clk 0:02:59.7]} 2. Nf3 {[%clk 0:03:01.1]}
2... e6 {[%clk 0:03:00.1]} 3. c4 {[%clk 0:03:01.6]} 3... c5 {[%clk 0:03:00.3]}
4. d5 {[%clk 0:03:01]} 4... d6 {[%clk 0:03:00.8]} 5. Nc3 {[%clk 0:03:01]} 5...
exd5 {[%clk 0:03:01.3]} 6. cxd5 {[%clk 0:03:01.2]} 6... g6 {[%clk 0:03:02.2]} 7.
g3 {[%clk 0:03:01.4]} 7... Bg7 {[%clk 0:03:01.9]} 8. Bg2 {[%clk 0:03:02.3]} 8...
O-O {[%clk 0:03:02.8]} 9. O-O {[%clk 0:03:02.9]} 9... Re8 {[%clk 0:03:03.7]} 10.
Nd2 {[%clk 0:03:03.1]} 10... Nbd7 {[%clk 0:03:03.3]} 11. e4 {[%clk 0:03:00.9]}
11... Ne5 {[%clk 0:03:02.5]} 12. Qc2 {[%clk 0:02:59.3]} 12... c4 {[%clk
0:02:57]} 13. f4 {[%clk 0:02:42.4]} 13... Nd3 {[%clk 0:02:51.1]} 14. Nxc4 {[%clk
0:02:39.8]} 14... Nxc1 {[%clk 0:02:47.8]} 15. Raxc1 {[%clk 0:02:40.7]} 15... Ng4
{[%clk 0:02:44.2]} 16. Qe2 {[%clk 0:02:13.9]} 16... b5 {[%clk 0:02:36.6]} 17.
Nd2 {[%clk 0:02:06.7]} 17... b4 {[%clk 0:02:27.3]} 18. Nb5 {[%clk 0:01:56.3]}
18... Qb6+ {[%clk 0:02:26]} 19. Kh1 {[%clk 0:01:56.7]} 19... Ne3 {[%clk
0:02:21.1]} 20. Rc6 {[%clk 0:01:54.4]} 20... Nxf1 {[%clk 0:02:09.9]} 21. Rxb6
{[%clk 0:01:50.2]} 21... Nxd2 {[%clk 0:02:09.4]} 22. Rxd6 {[%clk 0:01:43.8]}
22... Nxe4 {[%clk 0:02:03.1]} 23. Bxe4 {[%clk 0:01:37.9]} 23... Bf5 {[%clk
0:02:02.5]} 24. Nc7 {[%clk 0:01:26.6]} 24... Bxe4+ {[%clk 0:01:42.1]} 25. Kg1
{[%clk 0:01:18.6]} 25... Rac8 {[%clk 0:01:37.4]} 26. Nxe8 {[%clk 0:01:04.8]}
26... Rc1+ {[%clk 0:01:27.3]} 27. Kf2 {[%clk 0:01:04.4]} 27... Bd4+ {[%clk
0:01:27.3]} 28. Qe3 {[%clk 0:01:04.7]} 28... Rc2+ {[%clk 0:01:25.6]} 29. Kf1
{[%clk 0:01:04.1]} 29... Bg2+ {[%clk 0:01:20.3]} 30. Ke1 {[%clk 0:01:03.7]}
30... Bxe3 {[%clk 0:01:18.2]} 31. Rd8 {[%clk 0:01:03.9]} 31... Bf3 {[%clk
0:01:09.9]} 0-1

[Event "*** Titled Tuesday Blitz"]
[Site "Chess.com"]
[Date "2021.02.09"]
[Round "10"]
[White "jamalm2"]
[Black "YIYUKI"]
[Result "0-1"]
[WhiteElo "1934"]
[BlackElo "2158"]
[TimeControl "180+1"]
[EndTime "11:53:37 PST"]
[Termination "YIYUKI won by checkmate"]

1. e4 {[%clk 0:03:00.9]} 1... e5 {[%clk 0:02:56.3]} 2. Nf3 {[%clk 0:02:56.5]}
2... Nc6 {[%clk 0:02:56.3]} 3. Bc4 {[%clk 0:02:55.1]} 3... Bc5 {[%clk
0:02:55.1]} 4. c3 {[%clk 0:02:47.1]} 4... Nf6 {[%clk 0:02:53.8]} 5. d4 {[%clk
0:02:45]} 5... exd4 {[%clk 0:02:53.3]} 6. cxd4 {[%clk 0:02:44.7]} 6... Bb4+
{[%clk 0:02:53.5]} 7. Bd2 {[%clk 0:02:40.2]} 7... Bxd2+ {[%clk 0:02:52.2]} 8.
Nbxd2 {[%clk 0:02:39.3]} 8... d5 {[%clk 0:02:52.1]} 9. exd5 {[%clk 0:02:31.1]}
9... Nxd5 {[%clk 0:02:51.5]} 10. O-O {[%clk 0:02:30.2]} 10... O-O {[%clk
0:02:51.2]} 11. Ne4 {[%clk 0:02:15.8]} 11... Bg4 {[%clk 0:02:34]} 12. Nc3 {[%clk
0:02:08.5]} 12... Nf4 {[%clk 0:02:25.2]} 13. d5 {[%clk 0:02:03.5]} 13... Ne5
{[%clk 0:02:16.6]} 14. Be2 {[%clk 0:02:02.4]} 14... Nxe2+ {[%clk 0:02:08.8]} 15.
Qxe2 {[%clk 0:01:53.9]} 15... Re8 {[%clk 0:02:03.1]} 16. Qd1 {[%clk 0:01:43.1]}
16... Qf6 {[%clk 0:01:53.5]} 17. Ne4 {[%clk 0:01:40]} 17... Nxf3+ {[%clk
0:01:23.3]} 18. gxf3 {[%clk 0:01:33.5]} 18... Qxf3 {[%clk 0:01:23.2]} 19. Qxf3
{[%clk 0:01:28.6]} 19... Bxf3 {[%clk 0:01:22.7]} 20. Nc3 {[%clk 0:01:27.7]}
20... Re5 {[%clk 0:01:19.9]} 21. h4 {[%clk 0:01:26]} 21... Rae8 {[%clk
0:01:17.7]} 22. Rac1 {[%clk 0:01:18.6]} 22... g5 {[%clk 0:01:13.9]} 23. hxg5
{[%clk 0:01:09.1]} 23... Rxg5+ {[%clk 0:01:12.8]} 24. Kh2 {[%clk 0:01:09.1]}
24... Rg2+ {[%clk 0:01:08.8]} 25. Kh3 {[%clk 0:01:08.7]} 25... Re5 {[%clk
0:01:08.3]} 26. Rg1 {[%clk 0:00:28.7]} 26... Rh5# {[%clk 0:01:06.8]} 0-1

[Event "*** Titled Tuesday Blitz"]
[Site "Chess.com"]
[Date "2021.02.09"]
[Round "10"]
[White "Artem_Sadovsky"]
[Black "mapleaff"]
[Result "1-0"]
[WhiteElo "2547"]
[BlackElo "2422"]
[TimeControl "180+1"]
[EndTime "11:53:39 PST"]
[Termination "Artem_Sadovsky won by resignation"]

1. Nf3 {[%clk 0:03:00.9]} 1... b6 {[%clk 0:02:58.7]} 2. g3 {[%clk 0:03:00.4]}
2... Bb7 {[%clk 0:02:58.9]} 3. Bg2 {[%clk 0:03:01]} 3... e6 {[%clk 0:02:59.3]}
4. O-O {[%clk 0:03:01.5]} 4... Nf6 {[%clk 0:02:59.5]} 5. b3 {[%clk 0:03:02]}
5... Be7 {[%clk 0:02:59.6]} 6. Bb2 {[%clk 0:03:02.6]} 6... O-O {[%clk
0:02:59.9]} 7. c4 {[%clk 0:03:03.2]} 7... c5 {[%clk 0:03:00]} 8. d4 {[%clk
0:03:02.8]} 8... cxd4 {[%clk 0:02:59.8]} 9. Nxd4 {[%clk 0:03:03.5]} 9... Bxg2
{[%clk 0:02:59.5]} 10. Kxg2 {[%clk 0:03:04.3]} 10... Qc8 {[%clk 0:03:00.2]} 11.
e3 {[%clk 0:03:03.2]} 11... Qb7+ {[%clk 0:02:59.2]} 12. Qf3 {[%clk 0:02:59.2]}
12... Nc6 {[%clk 0:02:59.1]} 13. Nc3 {[%clk 0:02:53.5]} 13... Rfd8 {[%clk
0:02:51.5]} 14. Rfd1 {[%clk 0:02:53.5]} 14... Rac8 {[%clk 0:02:50]} 15. Rd2
{[%clk 0:02:45.1]} 15... d5 {[%clk 0:02:43.3]} 16. Nxc6 {[%clk 0:02:36.9]} 16...
Qxc6 {[%clk 0:02:42.8]} 17. cxd5 {[%clk 0:02:36]} 17... Nxd5 {[%clk 0:02:42.5]}
18. Nxd5 {[%clk 0:02:35.7]} 18... Rxd5 {[%clk 0:02:42.8]} 19. Rc1 {[%clk
0:02:28.5]} 19... Rc5 {[%clk 0:02:22.6]} 20. Qxc6 {[%clk 0:02:25.4]} 20... R5xc6
{[%clk 0:02:08.4]} 21. Rxc6 {[%clk 0:02:24.9]} 21... Rxc6 {[%clk 0:02:09.2]} 22.
Rd7 {[%clk 0:02:25.1]} 22... Bf6 {[%clk 0:01:44.2]} 23. Bxf6 {[%clk 0:02:20]}
23... gxf6 {[%clk 0:01:45.1]} 24. Rxa7 {[%clk 0:02:20.3]} 24... Rc2 {[%clk
0:01:44.6]} 25. Kf3 {[%clk 0:02:14.6]} 25... Kg7 {[%clk 0:01:44.3]} 26. h4
{[%clk 0:02:11.1]} 26... h5 {[%clk 0:01:43.5]} 27. a4 {[%clk 0:01:50.6]} 27...
Rb2 {[%clk 0:01:41.3]} 28. Rb7 {[%clk 0:01:51.1]} 28... Rxb3 {[%clk 0:01:40.2]}
29. a5 {[%clk 0:01:51.4]} 29... b5 {[%clk 0:01:40.2]} 30. a6 {[%clk 0:01:51.9]}
30... Ra3 {[%clk 0:01:39.7]} 31. a7 {[%clk 0:01:52.3]} 31... b4 {[%clk
0:01:38.6]} 32. Ke4 {[%clk 0:01:52.7]} 32... b3 {[%clk 0:01:35.9]} 33. Kd3
{[%clk 0:01:53.2]} 33... b2+ {[%clk 0:01:34.7]} 34. Kc2 {[%clk 0:01:53.6]} 34...
b1=Q+ {[%clk 0:01:20.2]} 35. Kxb1 {[%clk 0:01:53.8]} 35... Kg6 {[%clk
0:01:19.4]} 36. Kb2 {[%clk 0:01:53.7]} 36... Ra6 {[%clk 0:01:19.2]} 37. Kb3
{[%clk 0:01:44.3]} 37... f5 {[%clk 0:01:13.1]} 38. Kb4 {[%clk 0:01:42.6]} 38...
Kf6 {[%clk 0:01:04.4]} 39. f4 {[%clk 0:01:38.2]} 39... Ra1 {[%clk 0:00:41.7]}
40. Kb5 {[%clk 0:01:38]} 40... e5 {[%clk 0:00:35.5]} 41. Rb6+ {[%clk 0:01:37.6]}
41... Ke7 {[%clk 0:00:34.8]} 42. Ra6 {[%clk 0:01:38.5]} 1-0

[Event "*** Titled Tuesday Blitz"]
[Site "Chess.com"]
[Date "2021.02.09"]
[Round "10"]
[White "Artem_Koval"]
[Black "CSB7"]
[Result "0-1"]
[WhiteElo "2246"]
[BlackElo "2534"]
[TimeControl "180+1"]
[EndTime "11:53:43 PST"]
[Termination "CSB7 won by resignation"]

1. d4 {[%clk 0:03:00.9]} 1... Nf6 {[%clk 0:02:59.3]} 2. Bf4 {[%clk 0:03:00.6]}
2... d5 {[%clk 0:02:58.1]} 3. e3 {[%clk 0:03:00.6]} 3... c5 {[%clk 0:02:57.6]}
4. c3 {[%clk 0:03:00]} 4... Nc6 {[%clk 0:02:57.4]} 5. Nd2 {[%clk 0:02:58]} 5...
e6 {[%clk 0:02:57.2]} 6. Bd3 {[%clk 0:02:55.6]} 6... Bd6 {[%clk 0:02:55.2]} 7.
Bxd6 {[%clk 0:02:50.8]} 7... Qxd6 {[%clk 0:02:54.1]} 8. f4 {[%clk 0:02:51.4]}
8... cxd4 {[%clk 0:02:53]} 9. cxd4 {[%clk 0:02:51.1]} 9... Bd7 {[%clk
0:02:53.5]} 10. a3 {[%clk 0:02:49.4]} 10... O-O {[%clk 0:02:51.8]} 11. Ngf3
{[%clk 0:02:48.9]} 11... Ne7 {[%clk 0:02:52.2]} 12. Ne5 {[%clk 0:02:46.3]} 12...
Nf5 {[%clk 0:02:47.5]} 13. Qf3 {[%clk 0:02:38.3]} 13... Qb6 {[%clk 0:02:47.3]}
14. b4 {[%clk 0:02:03.1]} 14... Bb5 {[%clk 0:02:42.1]} 15. O-O {[%clk
0:01:46.8]} 15... Nd6 {[%clk 0:02:35.9]} 16. g4 {[%clk 0:01:36.7]} 16... Bxd3
{[%clk 0:02:29.6]} 17. Nxd3 {[%clk 0:01:37.6]} 17... Nfe4 {[%clk 0:02:29.5]} 18.
Nb3 {[%clk 0:01:30.8]} 18... Qb5 {[%clk 0:02:21.8]} 19. Ndc5 {[%clk 0:01:24.5]}
19... b6 {[%clk 0:02:19.8]} 20. Nxe4 {[%clk 0:01:21.6]} 20... Nxe4 {[%clk
0:02:20.3]} 21. Rfc1 {[%clk 0:01:13.9]} 21... Rac8 {[%clk 0:02:16.6]} 22. Qf1
{[%clk 0:01:08.3]} 22... Qa4 {[%clk 0:02:04]} 23. Qd3 {[%clk 0:00:58.5]} 23...
Rxc1+ {[%clk 0:02:01.9]} 24. Rxc1 {[%clk 0:00:53.5]} 24... Qxa3 {[%clk
0:02:00.8]} 25. Rc7 {[%clk 0:00:29.3]} 25... Qxb4 {[%clk 0:01:58.1]} 26. f5
{[%clk 0:00:24.1]} 26... Qe1+ {[%clk 0:01:56.3]} 27. Kg2 {[%clk 0:00:23.4]}
27... Qf2+ {[%clk 0:01:55.6]} 28. Kh1 {[%clk 0:00:23.6]} 28... Qf3+ {[%clk
0:01:56.1]} 29. Kg1 {[%clk 0:00:22.9]} 29... Qxg4+ {[%clk 0:01:55.6]} 30. Kf1
{[%clk 0:00:19]} 30... Qxf5+ {[%clk 0:01:46.8]} 31. Ke1 {[%clk 0:00:17.6]} 31...
Qf2+ {[%clk 0:01:46]} 32. Kd1 {[%clk 0:00:17.2]} 32... Qg1+ {[%clk 0:01:46.1]}
33. Kc2 {[%clk 0:00:17.3]} 33... Qxh2+ {[%clk 0:01:45.7]} 34. Kb1 {[%clk
0:00:17.2]} 34... Qxc7 {[%clk 0:01:46.6]} 0-1

[Event "*** Titled Tuesday Blitz"]
[Site "Chess.com"]
[Date "2021.02.09"]
[Round "10"]
[White "Vesper2018"]
[Black "esapunov"]
[Result "1-0"]
[WhiteElo "2605"]
[BlackElo "2719"]
[TimeControl "180+1"]
[EndTime "11:53:46 PST"]
[Termination "Vesper2018 won by resignation"]

1. e4 {[%clk 0:03:00.9]} 1... c5 {[%clk 0:02:59.8]} 2. Nc3 {[%clk 0:03:00.3]}
2... d6 {[%clk 0:02:59.2]} 3. Nge2 {[%clk 0:02:57.8]} 3... Nc6 {[%clk
0:02:58.5]} 4. d4 {[%clk 0:02:57]} 4... cxd4 {[%clk 0:02:58.6]} 5. Nxd4 {[%clk
0:02:57.5]} 5... Nf6 {[%clk 0:02:59.3]} 6. Bc4 {[%clk 0:02:56.8]} 6... e6 {[%clk
0:02:59.4]} 7. Be3 {[%clk 0:02:55.4]} 7... Be7 {[%clk 0:02:59.5]} 8. Qe2 {[%clk
0:02:54.5]} 8... O-O {[%clk 0:02:59.7]} 9. O-O-O {[%clk 0:02:54.1]} 9... d5
{[%clk 0:03:00]} 10. Bb3 {[%clk 0:02:44.8]} 10... Re8 {[%clk 0:02:53.7]} 11. f4
{[%clk 0:02:37.3]} 11... Bb4 {[%clk 0:02:49.7]} 12. e5 {[%clk 0:02:19.9]} 12...
Bxc3 {[%clk 0:02:48.8]} 13. bxc3 {[%clk 0:02:18.6]} 13... Ne4 {[%clk 0:02:48.9]}
14. Qe1 {[%clk 0:02:03.5]} 14... Qa5 {[%clk 0:02:29]} 15. Kb2 {[%clk 0:02:01.8]}
15... Bd7 {[%clk 0:02:19.1]} 16. c4 {[%clk 0:01:54.1]} 16... Qxe1 {[%clk
0:02:16.2]} 17. Rhxe1 {[%clk 0:01:53.5]} 17... dxc4 {[%clk 0:02:15.1]} 18. Bxc4
{[%clk 0:01:50.7]} 18... Nxd4 {[%clk 0:01:58.6]} 19. Bxd4 {[%clk 0:01:42.1]}
19... Bc6 {[%clk 0:01:58.8]} 20. Bd3 {[%clk 0:01:38.9]} 20... f5 {[%clk
0:01:57.1]} 21. exf6 {[%clk 0:01:31]} 21... Nxf6 {[%clk 0:01:57.1]} 22. Bxf6
{[%clk 0:01:25]} 22... gxf6 {[%clk 0:01:56.9]} 23. Bc4 {[%clk 0:01:25.4]} 23...
Kg7 {[%clk 0:01:49.7]} 24. Bxe6 {[%clk 0:01:24.9]} 24... Bxg2 {[%clk 0:01:46.4]}
25. Rd7+ {[%clk 0:01:03]} 25... Kh8 {[%clk 0:01:33.2]} 26. f5 {[%clk 0:01:02.7]}
26... Bc6 {[%clk 0:01:30.4]} 27. Rf7 {[%clk 0:00:59.5]} 27... Rf8 {[%clk
0:01:29.9]} 28. Rc7 {[%clk 0:00:57.7]} 28... Rad8 {[%clk 0:01:02.7]} 29. Re3
{[%clk 0:00:56]} 29... Bd5 {[%clk 0:00:50.1]} 30. Rh3 {[%clk 0:00:51.7]} 1-0

[Event "*** Titled Tuesday Blitz"]
[Site "Chess.com"]
[Date "2021.02.09"]
[Round "10"]
[White "FMalexhdez"]
[Black "Khnykin_Nikolay"]
[Result "0-1"]
[WhiteElo "2165"]
[BlackElo "2072"]
[TimeControl "180+1"]
[EndTime "11:53:50 PST"]
[Termination "Khnykin_Nikolay won by resignation"]

1. e4 {[%clk 0:03:00.9]} 1... e6 {[%clk 0:02:51.3]} 2. d4 {[%clk 0:03:00]} 2...
d5 {[%clk 0:02:50.1]} 3. Nd2 {[%clk 0:03:00.1]} 3... c5 {[%clk 0:02:49.3]} 4.
Ngf3 {[%clk 0:02:55.5]} 4... Nc6 {[%clk 0:02:44.7]} 5. exd5 {[%clk 0:02:37.9]}
5... exd5 {[%clk 0:02:42.7]} 6. Be2 {[%clk 0:02:31.8]} 6... Nf6 {[%clk
0:02:40.2]} 7. O-O {[%clk 0:02:31.1]} 7... Bd6 {[%clk 0:02:39.3]} 8. dxc5 {[%clk
0:02:30.4]} 8... Bxc5 {[%clk 0:02:39]} 9. Nb3 {[%clk 0:02:31]} 9... Bb6 {[%clk
0:02:37.4]} 10. c3 {[%clk 0:02:30.9]} 10... O-O {[%clk 0:02:36.2]} 11. Nbd4
{[%clk 0:02:30.9]} 11... Bg4 {[%clk 0:02:32.3]} 12. h3 {[%clk 0:02:29.7]} 12...
Bh5 {[%clk 0:02:31]} 13. Bg5 {[%clk 0:02:27.1]} 13... Re8 {[%clk 0:02:29]} 14.
Re1 {[%clk 0:02:22.9]} 14... Nxd4 {[%clk 0:02:12.8]} 15. Nxd4 {[%clk 0:02:14]}
15... Bxe2 {[%clk 0:02:09.9]} 16. Rxe2 {[%clk 0:02:11.9]} 16... Qd6 {[%clk
0:02:03.6]} 17. Bxf6 {[%clk 0:01:50.1]} 17... Qxf6 {[%clk 0:02:00.7]} 18. Nf3
{[%clk 0:01:42.2]} 18... h6 {[%clk 0:01:54.1]} 19. Rxe8+ {[%clk 0:01:33.4]}
19... Rxe8 {[%clk 0:01:52.7]} 20. Qxd5 {[%clk 0:01:33.9]} 20... Re2 {[%clk
0:01:50.4]} 21. Qxb7 {[%clk 0:01:08.1]} 21... Rxf2 {[%clk 0:01:44.8]} 22. Kh1
{[%clk 0:01:05.3]} 22... Qg6 {[%clk 0:01:38.1]} 23. Ne5 {[%clk 0:00:51.6]} 23...
Qg3 {[%clk 0:01:26.5]} 24. Qa8+ {[%clk 0:00:36.4]} 24... Kh7 {[%clk 0:01:23.4]}
25. Qe4+ {[%clk 0:00:36.9]} 25... f5 {[%clk 0:01:21.3]} 26. Qd5 {[%clk
0:00:29.2]} 26... Bc7 {[%clk 0:01:18.4]} 27. Re1 {[%clk 0:00:20.9]} 27... Bxe5
{[%clk 0:01:12.4]} 28. Qxe5 {[%clk 0:00:16]} 28... Rf1+ {[%clk 0:01:11.4]} 0-1

[Event "*** Titled Tuesday Blitz"]
[Site "Chess.com"]
[Date "2021.02.09"]
[Round "10"]
[White "juli2512"]
[Black "HanSchut"]
[Result "0-1"]
[WhiteElo "2167"]
[BlackElo "2268"]
[TimeControl "180+1"]
[EndTime "11:53:52 PST"]
[Termination "HanSchut won by resignation"]

1. e4 {[%clk 0:03:00.9]} 1... c5 {[%clk 0:02:59.7]} 2. d3 {[%clk 0:03:00.1]}
2... g6 {[%clk 0:02:59.3]} 3. f4 {[%clk 0:02:59.4]} 3... Bg7 {[%clk 0:02:59.5]}
4. g3 {[%clk 0:02:59.8]} 4... e6 {[%clk 0:03:00]} 5. Bg2 {[%clk 0:02:59.9]} 5...
Ne7 {[%clk 0:03:00.5]} 6. Nf3 {[%clk 0:02:59.8]} 6... Nbc6 {[%clk 0:03:01]} 7.
O-O {[%clk 0:02:59.3]} 7... O-O {[%clk 0:03:01.3]} 8. c3 {[%clk 0:02:58.6]} 8...
Rb8 {[%clk 0:03:00.2]} 9. Na3 {[%clk 0:02:56.8]} 9... b5 {[%clk 0:03:00.1]} 10.
Nc2 {[%clk 0:02:56.5]} 10... a5 {[%clk 0:03:00.1]} 11. g4 {[%clk 0:02:56.1]}
11... b4 {[%clk 0:03:00.6]} 12. Bd2 {[%clk 0:02:55.4]} 12... a4 {[%clk
0:03:00.2]} 13. a3 {[%clk 0:02:53]} 13... bxc3 {[%clk 0:02:58.1]} 14. bxc3
{[%clk 0:02:52.9]} 14... Rb3 {[%clk 0:02:58.6]} 15. Qe1 {[%clk 0:02:51.2]} 15...
f5 {[%clk 0:02:54]} 16. gxf5 {[%clk 0:02:45.2]} 16... exf5 {[%clk 0:02:49.4]}
17. e5 {[%clk 0:02:42.7]} 17... Ba6 {[%clk 0:02:46.1]} 18. Qe3 {[%clk
0:02:31.4]} 18... Qb6 {[%clk 0:02:36.1]} 19. Nfe1 {[%clk 0:02:15.7]} 19... g5
{[%clk 0:02:21.4]} 20. fxg5 {[%clk 0:02:10.3]} 20... Bxe5 {[%clk 0:02:19.7]} 21.
h4 {[%clk 0:02:05.5]} 21... Bxc3 {[%clk 0:02:03.2]} 22. Bxc3 {[%clk 0:02:00.2]}
22... Rxc3 {[%clk 0:02:04.1]} 23. Rd1 {[%clk 0:02:00.4]} 23... Qb3 {[%clk
0:01:29.6]} 24. h5 {[%clk 0:01:45.3]} 24... Rxc2 {[%clk 0:01:21.4]} 25. Nxc2
{[%clk 0:01:41.7]} 25... Qxc2 {[%clk 0:01:22.3]} 26. g6 {[%clk 0:01:28.1]} 26...
Qc3 {[%clk 0:01:12.3]} 27. Qg5 {[%clk 0:01:23.4]} 27... Qf6 {[%clk 0:01:03.4]}
28. Qg3 {[%clk 0:01:15.3]} 28... hxg6 {[%clk 0:00:57.3]} 29. Be4 {[%clk
0:01:07.7]} 29... Qd4+ {[%clk 0:00:50.4]} 30. Kh2 {[%clk 0:01:04.5]} 30... fxe4
{[%clk 0:00:45.9]} 31. Rxf8+ {[%clk 0:01:03.4]} 31... Kxf8 {[%clk 0:00:46.3]}
32. Rf1+ {[%clk 0:01:02.3]} 32... Kg8 {[%clk 0:00:41.3]} 33. hxg6 {[%clk
0:00:55.9]} 33... Qe5 {[%clk 0:00:41.3]} 34. Qxe5 {[%clk 0:00:55.2]} 34... Nxe5
{[%clk 0:00:41.4]} 0-1

[Event "*** Titled Tuesday Blitz"]
[Site "Chess.com"]
[Date "2021.02.09"]
[Round "10"]
[White "Vincent_Vega95"]
[Black "Korchmar_Vasiliy"]
[Result "0-1"]
[WhiteElo "2715"]
[BlackElo "2604"]
[TimeControl "180+1"]
[EndTime "11:53:53 PST"]
[Termination "Korchmar_Vasiliy won by resignation"]

1. d4 {[%clk 0:03:00.9]} 1... Nf6 {[%clk 0:02:59.5]} 2. c4 {[%clk 0:03:00.9]}
2... c6 {[%clk 0:02:59.4]} 3. Nf3 {[%clk 0:03:00.3]} 3... d5 {[%clk 0:02:59.9]}
4. Nc3 {[%clk 0:02:59.7]} 4... a6 {[%clk 0:02:59.7]} 5. c5 {[%clk 0:02:59.7]}
5... Bf5 {[%clk 0:02:58.5]} 6. Bf4 {[%clk 0:03:00.1]} 6... Nbd7 {[%clk
0:02:56.6]} 7. e3 {[%clk 0:02:56.4]} 7... e6 {[%clk 0:02:54.5]} 8. Nd2 {[%clk
0:02:55.7]} 8... Be7 {[%clk 0:02:53.5]} 9. Be2 {[%clk 0:02:56.2]} 9... O-O
{[%clk 0:02:53.5]} 10. O-O {[%clk 0:02:56.3]} 10... Qc8 {[%clk 0:02:50.8]} 11.
b4 {[%clk 0:02:53.7]} 11... Re8 {[%clk 0:02:47.8]} 12. a4 {[%clk 0:02:51.4]}
12... Bd8 {[%clk 0:02:48.1]} 13. Bd6 {[%clk 0:02:11.3]} 13... e5 {[%clk
0:02:44.5]} 14. Nf3 {[%clk 0:01:09.6]} 14... Bc7 {[%clk 0:02:41.9]} 15. dxe5
{[%clk 0:01:06.2]} 15... Nxe5 {[%clk 0:02:37.7]} 16. Bxe5 {[%clk 0:00:53.9]}
16... Bxe5 {[%clk 0:02:36.9]} 17. Nxe5 {[%clk 0:00:54.5]} 17... Rxe5 {[%clk
0:02:37.8]} 18. Qd4 {[%clk 0:00:54.9]} 18... Qe6 {[%clk 0:02:33.3]} 19. b5
{[%clk 0:00:46.1]} 19... Ne4 {[%clk 0:02:11.7]} 20. bxc6 {[%clk 0:00:34.9]}
20... bxc6 {[%clk 0:02:11.2]} 21. Bd3 {[%clk 0:00:31]} 21... Qe7 {[%clk
0:01:36.4]} 22. Bxe4 {[%clk 0:00:23]} 22... Bxe4 {[%clk 0:01:37.3]} 23. f4
{[%clk 0:00:09.1]} 23... Re6 {[%clk 0:01:34.2]} 24. f5 {[%clk 0:00:09.6]} 24...
Re5 {[%clk 0:01:33.5]} 25. f6 {[%clk 0:00:09.7]} 25... gxf6 {[%clk 0:01:34.4]}
26. Rf4 {[%clk 0:00:07.5]} 26... Bg6 {[%clk 0:01:31.5]} 27. Raf1 {[%clk
0:00:07.1]} 27... Rxe3 {[%clk 0:01:22.8]} 28. Rxf6 {[%clk 0:00:07.3]} 28... Rd3
{[%clk 0:01:23.4]} 29. Qb4 {[%clk 0:00:06.6]} 29... Qe3+ {[%clk 0:01:21.5]} 30.
Kh1 {[%clk 0:00:06.5]} 30... Rxc3 {[%clk 0:01:22.4]} 0-1